bitfinex-derivatives/quotes_ETHF0:USTF0_20250504
["timestamp","ask_amount","ask_price","bid_price","bid_amount"]
[1746374131325,23.0970147,1830.9,1830.7,2.4295]
[1746374131620,23.0970147,1830.9,1830.8,1.09236]
[1746374132417,23.9107147,1830.9,1830.8,1.09236]
[1746374132825,18.43699588,1830.9,1830.8,1.09236]
[1746374134328,14.13684588,1830.9,1830.8,1.09236]
[1746374134531,13.32314588,1830.9,1830.8,1.09236]
[1746374134829,13.32314588,1830.9,1830.8,3.57616]
[1746374135230,9.63514588,1830.9,1830.8,3.57616]
[1746374138136,13.32314588,1830.9,1830.8,3.57616]
[1746374138933,7.33714588,1830.9,1830.8,3.57616]
[1746374139136,3.64914588,1830.9,1830.8,3.57616]
[1746374139535,5.32514588,1831.0,1830.8,3.57616]
[1746374139934,5.32514588,1831.0,1830.9,1.0923]
[1746374140234,9.01314588,1831.0,1830.9,1.0923]
[1746374140636,9.01314588,1831.0,1830.9,1.6761]
[1746374141035,9.01314588,1831.0,1830.9,2.7684]
[1746374141938,9.01314588,1831.0,1830.9,1.6761]
[1746374142139,9.01314588,1831.0,1830.9,2.7684]
[1746374143840,5.364,1831.0,1830.9,2.7684]
[1746374144034,5.364,1831.0,1830.9,1.6761]
[1746374144239,5.364,1831.0,1830.8,0.8631]
[1746374144438,1.6797,1830.9,1830.8,3.53596]
[1746374145139,5.3677,1830.9,1830.8,3.53596]
[1746374147237,1.6797,1830.9,1830.8,3.53596]
[1746374148148,3.688,1830.9,1830.8,3.53596]
[1746374149238,1.6971,1831.0,1830.9,1.0923]
[1746374149444,1.6971,1831.0,1830.9,2.7769]
[1746374150143,5.3851,1831.0,1830.9,2.7769]
[1746374151245,1.6971,1831.0,1830.9,2.7769]
[1746374152244,5.3851,1831.0,1830.9,2.7769]
[1746374154146,5.3851,1831.0,1830.9,1.0923]
[1746374155246,1.6971,1831.0,1830.9,1.0923]
[1746374156147,5.3851,1831.0,1830.9,1.0923]
[1746374156744,5.3851,1831.0,1830.7,7.4587]
[1746374156940,4.48273,1830.9,1830.7,3.45]
[1746374157245,1.6804,1830.8,1830.7,4.5424]
[1746374158242,5.3684,1830.8,1830.7,4.5424]
[1746374161547,5.3684,1830.8,1830.7,6.1549]
[1746374161749,5.3684,1830.8,1830.7,6.9495]
[1746374162050,3.688,1830.8,1830.7,6.9495]
[1746374162250,7.0071,1830.9,1830.8,1.09236]
[1746374163652,5.2971,1830.9,1830.8,3.64346]
[1746374166152,1.6091,1830.9,1830.8,3.64346]
[1746374167152,5.2971,1830.9,1830.8,3.64346]
[1746374168856,5.2971,1830.9,1830.8,1.09236]
[1746374171150,5.2971,1830.9,1830.8,3.47986]
[1746374172957,3.688,1830.9,1830.8,3.47986]
[1746374173545,5.3016,1831.0,1830.9,1.0923]
[1746374173751,5.3016,1831.0,1830.9,6.153]
[1746374174257,3.688,1831.0,1830.9,9.3608]
[1746374175160,11.24874588,1831.2,1831.1,1.09218]
[1746374175363,5.26274588,1831.2,1831.1,1.09218]
[1746374176057,8.95074588,1831.2,1831.1,1.09218]
[1746374176263,7.33714588,1831.2,1831.1,4.29998]
[1746374176460,7.33714588,1831.2,1831.1,5.12538]
[1746374176864,3.688,1831.2,1831.1,5.12538]
[1746374177056,5.3703,1831.2,1831.1,5.12538]
[1746374177255,5.3703,1831.2,1831.1,7.74898]
[1746374177455,3.688,1831.2,1831.1,12.74898]
[1746374177955,3.688,1831.2,1831.1,14.46258]
[1746374178158,11.31744588,1831.5,1831.4,1.092]
[1746374178360,11.31744588,1831.5,1831.4,4.541]
[1746374179051,15.00544588,1831.5,1831.4,4.541]
[1746374179770,15.00544588,1831.5,1831.4,3.449]
[1746374180061,21.09738588,1831.5,1831.4,3.449]
[1746374181162,16.09738588,1831.5,1831.4,3.449]
[1746374181363,12.44824,1831.5,1831.4,3.449]
[1746374182465,15.65604,1831.5,1831.4,3.449]
[1746374183266,20.65604,1831.5,1831.4,3.449]
[1746374183660,1.09206,1831.3,1831.2,1.09209]
[1746374184159,10.7661,1831.3,1831.1,11.8377761]
[1746374184359,3.2253,1831.2,1831.1,11.8377761]
[1746374185067,6.9133,1831.2,1831.1,11.8377761]
[1746374185363,6.9133,1831.2,1831.1,4.54115]
[1746374186568,8.00542,1831.2,1831.1,3.449]
[1746374187563,12.8993,1831.2,1830.9,3.2078]
[1746374187769,2.75178,1831.1,1831.0,3.449]
[1746374188265,6.43978,1831.1,1831.0,3.449]
[1746374188463,1.0923,1830.9,1830.8,7.2966261]
[1746374189164,6.3579,1830.9,1830.8,7.2966261]
[1746374189468,6.3579,1830.9,1830.7,4.54139]
[1746374189666,1.5719,1830.8,1830.7,4.54139]
[1746374190063,5.2599,1830.8,1830.7,4.54139]
[1746374190567,6.35226,1830.8,1830.7,4.54139]
[1746374191070,6.35226,1830.8,1830.7,3.449]
[1746374193363,5.2599,1830.8,1830.7,3.449]
[1746374194765,5.2599,1830.8,1830.7,4.54142]
[1746374194963,3.688,1830.8,1830.7,6.13132]
[1746374195166,1.5818,1831.0,1830.8,1.09232]
[1746374195366,1.5818,1831.0,1830.9,1.5899]
[1746374196571,1.5818,1831.0,1830.9,2.6822]
[1746374196971,1.5818,1831.0,1830.9,6.1312]
[1746374199073,5.2698,1831.0,1830.9,6.1312]
[1746374199673,5.2698,1831.0,1830.9,4.5413]
[1746374205676,5.2698,1831.0,1830.9,6.1997]
[1746374205977,5.2698,1831.0,1830.9,5.1074]
[1746374206278,5.2698,1831.0,1830.9,6.1997]
[1746374206777,6.36204,1831.0,1830.9,3.449]
[1746374207577,5.2698,1831.0,1830.9,4.5413]
[1746374208577,3.688,1831.0,1830.9,4.5413]
[1746374208884,3.688,1831.0,1830.9,6.2664]
[1746374213985,3.688,1831.0,1830.9,3.449]
[1746374214182,5.3133,1831.0,1830.9,3.449]
[1746374214790,5.3133,1831.0,1830.9,4.5413]
[1746374215682,5.3133,1831.0,1830.9,6.2307]
[1746374218287,5.3133,1831.0,1830.9,4.5413]
[1746374220291,3.688,1831.0,1830.9,4.5413]
[1746374220489,5.3998,1831.0,1830.9,4.5413]
[1746374220788,5.3998,1831.0,1830.9,6.1239]
[1746374220978,5.3998,1831.0,1830.9,4.5413]
[1746374229693,5.3998,1831.0,1830.9,6.1599]
[1746374229891,3.688,1831.0,1830.9,6.1599]
[1746374235796,5.301,1831.0,1830.9,6.1599]
[1746374237497,3.688,1831.0,1830.9,6.1599]
[1746374242598,3.688,1831.0,1830.9,13.4565261]
[1746374247702,3.688,1831.0,1830.9,16.6643261]
[1746374249899,5.2983,1831.0,1830.9,16.6643261]
[1746374252107,5.2983,1831.0,1830.9,13.4565261]
[1746374252310,3.688,1831.0,1830.9,16.6643261]
[1746374254744,3.688,1831.0,1830.9,27.19723225]
[1746374257221,1.5986,1831.1,1831.0,1.09224]
[1746374257416,1.5986,1831.1,1831.0,1.89174]
[1746374258115,5.2866,1831.1,1831.0,1.89174]
[1746374259014,5.2866,1831.1,1831.0,1.09224]
[1746374259317,6.0813,1831.1,1831.0,1.09224]
[1746374260114,6.0813,1831.1,1831.0,3.46]
[1746374261023,6.0813,1831.1,1831.0,4.55224]
[1746374261824,11.0813,1831.1,1831.0,4.55224]
[1746374262623,6.0813,1831.1,1831.0,4.55224]
[1746374264523,6.0813,1831.1,1831.0,1.09224]
[1746374264921,11.0813,1831.1,1831.0,1.09224]
[1746374265224,17.0673,1831.1,1831.0,1.09224]
[1746374265416,18.15948,1831.1,1831.0,1.09224]
[1746374266523,17.0673,1831.1,1831.0,1.09224]
[1746374267119,12.0673,1831.1,1831.0,1.09224]
[1746374267625,13.1595,1831.1,1830.9,7.76107]
[1746374267926,2.4329,1831.0,1830.9,7.76107]
[1746374268825,2.4329,1831.0,1830.9,4.55327]
[1746374269125,6.1209,1831.0,1830.9,4.55327]
[1746374269625,7.21314,1831.0,1830.9,4.55327]
[1746374270220,7.21314,1831.0,1830.9,3.461]
[1746374271126,7.21314,1831.0,1830.9,4.5533]
[1746374271519,7.21314,1831.0,1830.9,3.461]
[1746374274431,1.09236,1830.8,1830.7,7.29398736]
[1746374275033,2.77696,1830.8,1830.7,7.29398736]
[1746374275232,6.46496,1830.8,1830.6,22.73248119]
[1746374275527,1.6065,1830.7,1830.6,22.73248119]
[1746374276232,5.2945,1830.7,1830.6,22.73248119]
[1746374277534,6.38692,1830.7,1830.6,21.64003119]
[1746374278037,17.37292,1830.7,1830.6,18.18703119]
[1746374278229,17.37292,1830.7,1830.6,4.31388119]
[1746374278230,20.58072,1830.7,1830.6,4.31388119]
[1746374278532,24.46094052,1830.7,1830.6,3.52458119]
[1746374278933,24.46094052,1830.7,1830.6,0.79313183]
[1746374279136,1.09254,1830.5,1830.4,14.50921186]
[1746374279331,10.28634,1830.5,1830.4,14.50921186]
[1746374279935,11.94064,1830.5,1830.4,14.50921186]
[1746374280136,15.62864,1830.5,1830.4,14.50921186]
[1746374280841,1.09268,1830.3,1830.1,4.30056]
[1746374281137,1.6543,1830.2,1830.1,4.30056]
[1746374281339,3.3786,1830.2,1830.1,4.30056]
[1746374282139,8.15932,1830.2,1830.1,3.2078]
[1746374282539,1.09278,1830.1,1830.0,20.53091186]
[1746374282839,2.77988,1830.1,1830.0,20.53091186]
[1746374283035,6.46788,1830.1,1830.0,20.53091186]
[1746374284046,6.46788,1830.1,1830.0,17.96221186]
[1746374285443,6.46788,1830.1,1830.0,3.453]
[1746374285936,1.09284,1830.0,1829.9,4.9192]
[1746374286242,8.75634,1830.0,1829.9,3.2078]
[1746374287142,11.3515,1830.0,1829.9,3.2078]
[1746374287340,9.674,1830.0,1829.9,5.1653]
[1746374287539,9.674,1830.0,1829.9,8.6193]
[1746374289243,5.986,1830.0,1829.9,7.5264]
[1746374289541,7.07884,1830.0,1829.9,7.5264]
[1746374289745,7.07884,1830.0,1829.9,9.2514]
[1746374289936,7.07884,1830.0,1829.9,3.2078]
[1746374290142,1.09296,1829.8,1829.7,7.4904]
[1746374290543,9.674,1830.0,1829.7,10.3084]
[1746374290743,11.3389,1830.0,1829.8,1.725]
[1746374290943,1.6649,1829.9,1829.8,1.725]
[1746374291143,5.3529,1829.9,1829.8,1.725]
[1746374291335,3.688,1829.9,1829.8,2.81796]
[1746374292140,5.986,1830.0,1829.8,2.81796]
[1746374292141,5.986,1830.0,1829.9,1.0929]
[1746374292341,5.986,1830.0,1829.9,6.7224]
[1746374297551,2.4903,1830.1,1829.9,6.7224]
[1746374297850,2.4903,1830.1,1830.0,3.455]
[1746374298150,6.1783,1830.1,1830.0,3.455]
[1746374298354,6.1783,1830.1,1830.0,4.54784]
[1746374298549,6.1783,1830.1,1830.0,6.12794]
[1746374299854,5.3426,1830.1,1830.0,6.97294]
[1746374300656,3.688,1830.1,1830.0,6.97294]
[1746374301160,5.986,1830.2,1830.1,1.09278]
[1746374301358,7.6639,1830.2,1830.1,2.73818]
[1746374302258,11.3519,1830.2,1830.1,2.73818]
[1746374304861,11.3519,1830.2,1830.1,1.09278]
[1746374306262,12.44462,1830.2,1830.1,1.09278]
[1746374306460,12.44462,1830.2,1830.0,4.3]
[1746374306758,1.6255,1830.1,1830.0,5.39284]
[1746374307151,5.3135,1830.1,1830.0,5.39284]
[1746374311766,6.1267,1830.1,1830.0,5.39284]
[1746374314370,6.1267,1830.1,1830.0,4.54784]
[1746374314665,6.9505,1830.1,1830.0,4.54784]
[1746374319662,6.9505,1830.1,1830.0,5.39164]
[1746374321069,6.9505,1830.1,1830.0,7.12784]
[1746374321271,3.2625,1830.1,1830.0,7.12784]
[1746374322375,6.9505,1830.1,1830.0,7.12784]
[1746374328676,3.688,1830.1,1830.0,10.33564]
[1746374329174,5.35284588,1830.3,1830.2,1.09272]
[1746374330067,9.04084588,1830.3,1830.2,1.09272]
[1746374331575,9.04084588,1830.3,1830.2,1.89382]
[1746374332175,9.04084588,1830.3,1830.2,3.51052]
[1746374333677,5.3917,1830.3,1830.2,6.71832]
[1746374338086,3.688,1830.3,1830.2,6.71832]
[1746374338592,3.688,1830.3,1830.2,11.71832]
[1746374339184,1.7315,1830.5,1830.4,1.0926]
[1746374339489,1.7315,1830.5,1830.4,7.7574]
[1746374340091,5.4195,1830.5,1830.4,7.7574]
[1746374340393,5.4195,1830.5,1830.4,9.4244]
[1746374343697,5.4195,1830.5,1830.4,6.2166]
[1746374346501,5.4195,1830.5,1830.4,7.8273]
[1746374350111,5.4195,1830.5,1830.4,11.0351]
[1746374353407,5.4195,1830.5,1830.4,7.8273]
[1746374353599,3.688,1830.5,1830.4,11.0351]
[1746374354001,7.0698,1830.5,1830.4,11.0351]
[1746374354402,7.0698,1830.5,1830.4,6.6648]
[1746374354607,8.16234,1830.5,1830.4,6.6648]
[1746374354905,7.0698,1830.5,1830.4,7.7574]
[1746374355408,8.16234,1830.5,1830.4,7.7574]
[1746374355706,7.0698,1830.5,1830.4,4.5496]
[1746374356007,8.16234,1830.5,1830.4,4.5496]
[1746374356308,8.16234,1830.5,1830.4,3.457]
[1746374357107,8.16234,1830.5,1830.4,4.5496]
[1746374357812,8.16234,1830.5,1830.3,1.09262]
[1746374358006,1.7021,1830.4,1830.3,4.54862]
[1746374358208,5.3901,1830.4,1830.3,4.54862]
[1746374358611,6.4827,1830.4,1830.3,4.54862]
[1746374358806,6.4827,1830.4,1830.3,3.456]
[1746374359006,5.3901,1830.4,1830.3,4.54866]
[1746374359499,3.688,1830.4,1830.3,4.54866]
[1746374359703,3.688,1830.4,1830.3,7.85406]
[1746374360311,1.7198,1830.5,1830.4,1.0926]
[1746374361212,5.4078,1830.5,1830.4,1.0926]
[1746374361408,5.4078,1830.5,1830.4,2.7533]
[1746374361608,5.4078,1830.5,1830.4,5.9611]
[1746374364614,5.4078,1830.5,1830.4,2.7533]
[1746374364815,5.4078,1830.5,1830.4,5.9611]
[1746374366806,3.688,1830.5,1830.4,5.9611]
[1746374372217,1.5678,1830.6,1830.5,1.09254]
[1746374372516,1.5678,1830.6,1830.5,4.30034]
[1746374373211,5.2558,1830.6,1830.5,4.30034]
[1746374376017,3.688,1830.6,1830.5,4.30034]
[1746374384325,2.59394,1830.6,1830.5,5.10254]
[1746374384526,6.85694588,1831.0,1830.5,5.10254]
[1746374384527,3.64914588,1831.0,1830.9,1.0923]
[1746374384729,3.64914588,1831.0,1830.9,7.7561]
[1746374385225,7.33714588,1831.0,1830.9,7.7561]
[1746374385617,7.33714588,1831.0,1830.9,10.1371]
[1746374386125,3.64914588,1831.0,1830.9,10.1371]
[1746374388322,1.7197,1831.2,1830.9,9.0448]
[1746374388519,0.851,1831.2,1831.1,4.29998]
[1746374389126,4.539,1831.2,1831.1,4.29998]
[1746374389425,4.539,1831.2,1831.1,4.54818]
[1746374390127,4.539,1831.2,1831.1,1.09218]
[1746374390324,4.539,1831.2,1831.1,4.54818]
[1746374391328,3.688,1831.2,1831.1,7.75598]
[1746374392320,1.5912,1831.3,1831.2,1.09212]
[1746374393131,5.2792,1831.3,1831.2,1.09212]
[1746374394028,5.2792,1831.3,1831.1,3.2078]
[1746374394223,13.00938,1831.3,1830.7,6.6848]
[1746374394528,1.09216,1831.2,1830.7,6.6848]
[1746374394728,6.37131,1831.3,1831.0,1.0922]
[1746374394924,6.37131,1831.3,1831.0,4.5692]
[1746374395724,5.986,1831.2,1831.0,4.5692]
[1746374395930,7.07816,1831.2,1831.0,4.56924]
[1746374396229,10.76616,1831.2,1831.0,4.56924]
[1746374397031,10.76616,1831.2,1831.1,1.09218]
[1746374398427,10.76616,1831.2,1831.0,3.477]
[1746374398731,1.09218,1831.1,1831.0,3.477]
[1746374399125,4.78018,1831.1,1831.0,3.477]
[1746374399326,3.688,1831.1,1831.0,4.56922]
[1746374400128,4.78018,1831.1,1831.0,1.09222]
[1746374400336,9.674,1831.1,1830.9,3.478]
[1746374400533,1.6042,1831.0,1830.9,3.478]
[1746374401137,5.2922,1831.0,1830.9,3.478]
[1746374401334,10.2922,1831.0,1830.9,4.5703]
[1746374401530,11.38444,1831.0,1830.9,3.478]
[1746374403136,6.38444,1831.0,1830.9,3.478]
[1746374405126,1.09252,1830.6,1830.4,3.2078]
[1746374405332,2.76644,1830.5,1830.4,6.6858]
[1746374405636,2.76644,1830.5,1830.4,3.478]
[1746374406027,4.47774,1830.5,1830.4,4.5706]
[1746374406236,7.0732,1830.5,1830.4,4.5706]
[1746374408135,7.0732,1830.5,1830.4,3.478]
[1746374408640,3.688,1830.5,1830.4,4.5706]
[1746374408938,4.78054,1830.5,1830.4,3.478]
[1746374409127,8.5351,1830.5,1830.3,3.478]
[1746374409334,4.40044,1830.4,1830.3,3.478]
[1746374409843,3.3078,1830.4,1830.3,3.478]
[1746374410136,6.9958,1830.4,1830.3,7.77846]
[1746374410537,6.9958,1830.4,1830.3,3.478]
[1746374410739,8.0884,1830.4,1830.3,3.478]
[1746374410930,6.9958,1830.4,1830.3,3.478]
[1746374411232,6.9958,1830.4,1830.3,7.77846]
[1746374411639,3.688,1830.4,1830.3,7.77846]
[1746374411827,3.688,1830.4,1830.3,8.61066]
[1746374412236,5.986,1830.6,1830.3,8.61061]
[1746374412437,5.986,1830.6,1830.4,0.8488]
[1746374412638,4.48136,1830.5,1830.3,3.2078]
[1746374412841,1.6854,1830.4,1830.3,3.2078]
[1746374413040,1.6854,1830.4,1830.3,6.6858]
[1746374413238,5.3734,1830.4,1830.3,3.478]
[1746374413441,5.3734,1830.4,1830.3,4.57066]
[1746374413742,3.688,1830.4,1830.3,7.77846]
[1746374414137,3.688,1830.4,1830.3,6.6858]
[1746374414545,3.688,1830.4,1830.3,4.57066]
[1746374414841,5.3085,1830.4,1830.3,4.57066]
[1746374415042,5.3085,1830.4,1830.3,7.77846]
[1746374415242,5.3085,1830.4,1830.3,4.57066]
[1746374415543,5.3085,1830.4,1830.3,7.77846]
[1746374415738,5.3085,1830.4,1830.3,4.57066]
[1746374416142,5.3085,1830.4,1830.3,6.6858]
[1746374416338,5.3085,1830.4,1830.3,3.478]
[1746374416534,6.4011,1830.4,1830.3,6.6858]
[1746374416842,5.3085,1830.4,1830.3,3.478]
[1746374417144,5.986,1830.6,1830.5,1.09254]
[1746374417351,7.6784,1830.6,1830.5,1.09254]
[1746374417544,5.986,1830.6,1830.5,4.30034]
[1746374417743,5.986,1830.6,1830.5,5.98974]
[1746374418647,1.6924,1830.9,1830.8,1.09236]
[1746374418944,1.6924,1830.9,1830.8,4.57036]
[1746374419346,1.6924,1830.9,1830.8,7.91006]
[1746374420247,5.3804,1830.9,1830.8,7.91006]
[1746374421048,3.688,1830.9,1830.8,7.91006]
[1746374422039,5.3736,1830.9,1830.8,7.91006]
[1746374422549,3.688,1830.9,1830.8,7.91006]
[1746374422753,7.3186955,1830.9,1830.8,7.91006]
[1746374422953,7.3186955,1830.9,1830.8,12.91006]
[1746374423153,3.6306955,1830.9,1830.8,12.91006]
[1746374423551,3.6306955,1830.9,1830.8,7.91006]
[1746374424152,3.6306955,1830.9,1830.8,12.91006]
[1746374425754,3.6306955,1830.9,1830.8,7.91006]
[1746374427156,7.3186955,1830.9,1830.8,7.91006]
[1746374427357,3.688,1830.9,1830.8,7.91006]
[1746374430057,2.4745,1831.1,1830.8,6.8177]
[1746374430259,0.7889,1831.1,1831.0,4.30004]
[1746374430458,0.7889,1831.1,1831.0,1.09224]
[1746374430860,0.7889,1831.1,1831.0,4.30004]
[1746374431157,4.4769,1831.1,1831.0,4.30004]
[1746374431762,3.688,1831.1,1831.0,4.30004]
[1746374432262,5.986,1831.5,1831.4,1.092]
[1746374432455,0.8649,1831.5,1831.4,4.643]
[1746374433053,4.5529,1831.5,1831.4,4.643]
[1746374437060,4.5529,1831.5,1831.4,3.551]
[1746374437362,5.64484,1831.5,1831.4,4.643]
[1746374437565,4.5529,1831.5,1831.4,4.643]
[1746374438761,4.5529,1831.5,1831.4,3.551]
[1746374439066,5.64484,1831.5,1831.4,3.551]
[1746374439262,5.64484,1831.5,1831.2,1.09208]
[1746374439263,4.5529,1831.5,1831.2,1.09208]
[1746374439463,1.092,1831.4,1831.3,3.551]
[1746374439872,1.092,1831.4,1831.3,4.64306]
[1746374440065,4.78,1831.4,1831.3,4.64306]
[1746374440267,4.78,1831.4,1831.3,3.551]
[1746374440968,4.78,1831.4,1831.3,4.64306]
[1746374441367,4.78,1831.4,1831.3,3.551]
[1746374441767,7.9878,1831.4,1831.3,3.551]
[1746374442370,4.78,1831.4,1831.3,3.551]
[1746374442570,7.9878,1831.4,1831.3,3.551]
[1746374444571,7.9878,1831.4,1831.3,4.64306]
[1746374444877,7.9878,1831.4,1831.3,3.551]
[1746374445376,6.8958,1831.4,1831.3,4.64306]
[1746374445678,7.9878,1831.4,1831.3,3.551]
[1746374446068,9.7137,1831.4,1831.3,3.551]
[1746374446676,6.5059,1831.4,1831.3,3.551]
[1746374446975,5.4139,1831.4,1831.3,4.64306]
[1746374447670,6.5059,1831.4,1831.3,4.64306]
[1746374448074,6.5059,1831.4,1831.3,3.551]
[1746374449874,6.5059,1831.4,1831.3,4.64306]
[1746374453081,6.5059,1831.4,1831.3,3.551]
[1746374453581,6.5059,1831.4,1831.3,4.64306]
[1746374454481,5.4139,1831.4,1831.3,4.64306]
[1746374458382,5.4139,1831.4,1831.3,7.15086]
[1746374458981,3.688,1831.4,1831.3,7.15086]
[1746374465398,5.986,1831.7,1831.6,1.09188]
[1746374465697,5.986,1831.7,1831.6,4.62488]
[1746374465890,1.7077,1831.8,1831.7,1.09182]
[1746374466091,1.7077,1831.8,1831.7,1.89482]
[1746374467097,5.3957,1831.8,1831.7,1.89482]
[1746374474605,3.688,1831.8,1831.7,1.09182]
[1746374474802,6.1282,1831.8,1831.7,1.09182]
[1746374479910,6.1282,1831.8,1831.7,4.29962]
[1746374481310,6.1282,1831.8,1831.7,1.09182]
[1746374481519,6.1282,1831.8,1831.7,4.29962]
[1746374484222,6.1282,1831.8,1831.7,1.09182]
[1746374485515,11.1282,1831.8,1831.3,7.27930274]
[1746374485722,4.8249,1831.7,1831.3,8.37136274]
[1746374486021,2.4266,1831.6,1831.4,1.09197]
[1746374486219,1.6171,1831.5,1831.4,1.09197]
[1746374486419,2.4365,1831.5,1831.4,1.09197]
[1746374487319,6.1245,1831.5,1831.4,1.09197]
[1746374493730,6.1245,1831.5,1831.4,6.74777]
[1746374494027,3.688,1831.5,1831.4,6.74777]
[1746374494428,3.688,1831.5,1831.4,11.74777]
[1746374495229,5.2846955,1831.7,1831.6,1.09188]
[1746374495429,5.2846955,1831.7,1831.6,7.80468]
[1746374495625,3.6306955,1831.7,1831.6,7.80468]
[1746374497036,3.1783,1831.9,1831.8,1.09176]
[1746374498227,6.8663,1831.9,1831.8,1.09176]
[1746374511354,6.8663,1831.9,1831.8,2.72746]
[1746374512757,6.0691,1831.9,1831.8,2.72746]
[1746374512955,5.2597,1831.9,1831.8,2.72746]
[1746374518849,5.2597,1831.9,1831.8,1.09176]
[1746374522361,5.2597,1831.9,1831.8,4.59276]
[1746374523562,5.2597,1831.9,1831.8,6.25576]
[1746374523763,3.688,1831.9,1831.8,9.46356]
[1746374528154,3.688,1831.9,1831.8,7.80056]
[1746374528360,3.688,1831.9,1831.8,6.7088]
[1746374528560,3.688,1831.9,1831.8,4.59276]
[1746374528561,8.688,1831.9,1831.8,4.59276]
[1746374528754,10.2785,1831.9,1831.8,4.59276]
[1746374529061,5.2785,1831.9,1831.8,4.59276]
[1746374539662,6.3702,1831.9,1831.8,4.59276]
[1746374539868,6.3702,1831.9,1831.8,3.501]
[1746374540369,6.3702,1831.9,1831.8,4.59276]
[1746374540570,6.3702,1831.9,1831.8,3.501]
[1746374542571,1.09176,1831.8,1831.7,1.09179]
[1746374542770,6.45,1831.8,1831.5,1.0919]
[1746374543071,1.09191,1831.6,1831.5,1.09193]
[1746374543671,2.67727,1831.7,1831.5,1.09193]
[1746374544172,4.77988,1831.6,1831.5,1.09193]
[1746374544473,6.36528,1831.6,1831.5,1.09193]
[1746374546278,6.36528,1831.6,1831.4,3.502]
[1746374546279,1.09194,1831.5,1831.4,3.502]
[1746374546571,4.36604,1831.5,1831.4,3.502]
[1746374547167,8.05404,1831.5,1831.4,3.502]
[1746374547880,8.05404,1831.5,1831.4,4.594]
[1746374548374,8.05404,1831.5,1831.4,3.502]
[1746374548576,8.05404,1831.5,1831.4,4.594]
[1746374550263,6.9621,1831.5,1831.4,4.594]
[1746374551077,8.05404,1831.5,1831.4,4.594]
[1746374551277,6.9621,1831.5,1831.4,4.594]
[1746374551879,8.05404,1831.5,1831.4,4.594]
[1746374552981,6.9621,1831.5,1831.4,4.594]
[1746374557185,5.3057,1831.5,1831.4,4.594]
[1746374557395,3.688,1831.5,1831.4,4.594]
[1746374557689,3.688,1831.5,1831.4,12.8018]
[1746374560684,6.85187886,1831.8,1831.7,1.09182]
[1746374560989,3.64407886,1832.1,1832.0,1.09164]
[1746374561286,7.33207886,1832.1,1832.0,1.09164]
[1746374561884,7.33207886,1832.1,1832.0,1.92394]
[1746374564281,5.3446,1832.1,1832.0,1.92394]
[1746374564690,3.688,1832.1,1832.0,1.92394]
[1746374565587,5.3446,1832.1,1832.0,1.92394]
[1746374570297,11.3226,1832.1,1832.0,1.92394]
[1746374580805,11.3226,1832.1,1832.0,1.09164]
[1746374587404,11.3226,1832.1,1832.0,4.56264]
[1746374587705,11.6733545,1832.1,1832.0,4.56264]
[1746374588308,11.67335477,1832.1,1832.0,4.56264]
[1746374590106,11.67737182,1832.1,1832.0,4.56264]
[1746374592002,11.67756113,1832.1,1832.0,4.56264]
[1746374595611,11.67754605,1832.1,1832.0,4.56264]
[1746374595802,11.3226,1832.1,1832.0,4.56264]
[1746374596002,11.3226,1832.1,1832.0,6.18544]
[1746374596413,11.67752935,1832.1,1832.0,6.18544]
[1746374596610,11.3226,1832.1,1832.0,6.18544]
[1746374597213,11.67735459,1832.1,1832.0,6.18544]
[1746374597413,11.67735197,1832.1,1832.0,6.18544]
[1746374599723,11.67735197,1832.1,1832.0,4.56264]
[1746374600823,11.67729506,1832.1,1832.0,4.56264]
[1746374601119,11.67729488,1832.1,1832.0,4.56264]
[1746374603019,11.67729001,1832.1,1832.0,4.56264]
[1746374604820,11.6772881,1832.1,1832.0,4.56264]
[1746374605321,11.67728521,1832.1,1832.0,4.56264]
[1746374606722,11.67727294,1832.1,1832.0,4.56264]
[1746374607323,10.55848294,1832.1,1832.0,4.56264]
[1746374607620,12.5459618,1832.1,1832.0,7.15444]
[1746374608423,14.1306618,1832.1,1832.0,7.15444]
[1746374608623,14.1305356,1832.1,1832.0,7.15444]
[1746374610120,14.1305356,1832.1,1832.0,6.29084]
[1746374610321,13.77598886,1832.1,1832.0,4.56264]
[1746374610526,14.13019459,1832.1,1832.0,4.56264]
[1746374610728,14.13019459,1832.1,1832.0,6.12834]
[1746374611226,10.48611573,1832.1,1832.0,6.12834]
[1746374612321,10.48605783,1832.1,1832.0,6.12834]
[1746374614035,10.48601918,1832.1,1832.0,6.12834]
[1746374614233,10.13191,1832.1,1832.0,6.12834]
[1746374614433,10.48599793,1832.1,1832.0,6.12834]
[1746374614632,10.13191,1832.1,1832.0,6.12834]
[1746374615733,7.31895,1832.1,1832.0,6.12834]
[1746374617134,0.20725,1832.1,1832.0,6.12834]
[1746374617633,1e-05,1832.1,1832.0,6.12834]
[1746374619730,1e-05,1832.1,1832.0,9.33614]
[1746374621438,4.1e-06,1832.1,1832.0,9.33614]
[1746374622135,1.6070841,1832.1,1832.0,9.33614]
[1746374622436,1e-08,1832.3,1832.2,1.09152]
[1746374622638,1.7141,1832.4,1832.3,1.09146]
[1746374622831,1.7141,1832.4,1832.3,6.12086]
[1746374623144,5.4021,1832.4,1832.3,6.12086]
[1746374623942,3.688,1832.4,1832.3,6.12086]